[Event "Titled Tuesday Blitz July 26 Late 2022"]
[White "Janaszak, Dawid"]
[Black "Jacobson, Brandon"]
[WhiteFideId "1119206"]
[BlackFideId "30901561"]
[WhiteElo "2199"]
[BlackElo "2362"]
[Result "0-1"]
[Round "02"]
[TimeControl "180+1"]
[Date "2022.07.26"]
[WhiteClock "0:00:02"]
[BlackClock "0:00:05"]

1. d4 {[%clk 0:03:00]}  Nf6 {[%clk 0:03:00]} 2. Bf4 {[%clk 0:03:01]}  b6 {[%clk 0:02:50]} 3. Nf3 {[%clk 0:02:49]}  Bb7 {[%clk 0:02:51]} 4. a4 {[%clk 0:02:39]}  a5 {[%clk 0:02:51]} 5. h3 {[%clk 0:02:35]}  g6 {[%clk 0:02:51]} 6. Nc3 {[%clk 0:02:35]}  Bg7 {[%clk 0:02:52]} 7. Qd2 {[%clk 0:02:35]}  d6 {[%clk 0:02:50]} 8. Bh6 {[%clk 0:02:34]}  O-O {[%clk 0:02:50]} 9. Bxg7 {[%clk 0:02:33]}  Kxg7 {[%clk 0:02:51]} 10. d5 {[%clk 0:02:19]}  e6 {[%clk 0:02:46]} 11. e4 {[%clk 0:02:18]}  exd5 {[%clk 0:02:42]} 12. exd5 {[%clk 0:02:19]}  Na6 {[%clk 0:02:41]} 13. Bxa6 {[%clk 0:02:03]}  Bxa6 {[%clk 0:02:42]} 14. O-O-O {[%clk 0:02:02]}  Qd7 {[%clk 0:02:40]} 15. Qd4 {[%clk 0:01:57]}  Qd8 {[%clk 0:02:23]} 16. Ne4 {[%clk 0:01:44]}  Re8 {[%clk 0:01:53]} 17. Rhe1 {[%clk 0:01:43]}  Qe7 {[%clk 0:01:54]} 18. Neg5 {[%clk 0:01:15]}  Qd7 {[%clk 0:01:47]} 19. Nxh7 {[%clk 0:01:08]}  Kxh7 {[%clk 0:01:39]} 20. Qxf6 {[%clk 0:01:08]}  Kg8 {[%clk 0:01:38]} 21. b3 {[%clk 0:01:05]}  b5 {[%clk 0:01:29]} 22. axb5 {[%clk 0:01:00]}  Bxb5 {[%clk 0:01:30]} 23. Rxe8+ {[%clk 0:00:51]}  Rxe8 {[%clk 0:01:31]} 24. Re1 {[%clk 0:00:52]}  a4 {[%clk 0:01:30]} 25. Kb2 {[%clk 0:00:45]}  Rxe1 {[%clk 0:01:14]} 26. Nxe1 {[%clk 0:00:46]}  Qe8 {[%clk 0:01:14]} 27. Nf3 {[%clk 0:00:38]}  axb3 {[%clk 0:01:13]} 28. Kxb3 {[%clk 0:00:33]}  Ba4+ {[%clk 0:00:51]} 29. Kc3 {[%clk 0:00:33]}  Qe4 {[%clk 0:00:38]} 30. Qxf7+ {[%clk 0:00:30]}  Kxf7 {[%clk 0:00:33]} 31. Ng5+ {[%clk 0:00:30]}  Kf6 {[%clk 0:00:34]} 32. Nxe4+ {[%clk 0:00:31]}  Ke5 {[%clk 0:00:35]} 33. f3 {[%clk 0:00:24]}  Kxd5 {[%clk 0:00:34]} 34. h4 {[%clk 0:00:24]}  Ke5 {[%clk 0:00:33]} 35. g3 {[%clk 0:00:22]}  Bc6 {[%clk 0:00:30]} 36. Kd3 {[%clk 0:00:21]}  d5 {[%clk 0:00:27]} 37. Nd2 {[%clk 0:00:19]}  Bb5+ {[%clk 0:00:27]} 38. Ke3 {[%clk 0:00:19]}  d4+ {[%clk 0:00:21]} 39. Kf2 {[%clk 0:00:19]}  Ba4 {[%clk 0:00:22]} 40. Nb3 {[%clk 0:00:12]}  Kd5 {[%clk 0:00:14]} 41. Ke2 {[%clk 0:00:09]}  c5 {[%clk 0:00:13]} 42. Kd2 {[%clk 0:00:08]}  c4 {[%clk 0:00:14]} 43. Nc1 {[%clk 0:00:08]}  c3+ {[%clk 0:00:14]} 44. Kd1 {[%clk 0:00:07]}  Ke5 {[%clk 0:00:03]} 45. Nd3+ {[%clk 0:00:07]}  Kf6 {[%clk 0:00:03]} 46. Ne1 {[%clk 0:00:08]}  Bc6 {[%clk 0:00:04]} 47. Ke2 {[%clk 0:00:08]}  Bb5+ {[%clk 0:00:04]} 48. Kd1 {[%clk 0:00:08]}  Kf5 {[%clk 0:00:04]} 49. Ng2 {[%clk 0:00:08]}  Bc6 {[%clk 0:00:05]} 50. g4+ {[%clk 0:00:08]}  Kf6 {[%clk 0:00:05]} 51. Ne1 {[%clk 0:00:08]}  Ke5 {[%clk 0:00:05]} 52. Ke2 {[%clk 0:00:09]}  Kf4 {[%clk 0:00:05]} 53. Nd3+ {[%clk 0:00:08]}  Kg3 {[%clk 0:00:06]} 54. h5 {[%clk 0:00:08]}  Bxf3+ {[%clk 0:00:06]} 55. Ke1 {[%clk 0:00:08]}  gxh5 {[%clk 0:00:06]} 56. gxh5 {[%clk 0:00:08]}  Bxh5 {[%clk 0:00:06]} 57. Ne5 {[%clk 0:00:08]}  Be8 {[%clk 0:00:05]} 58. Ke2 {[%clk 0:00:08]}  Kf4 {[%clk 0:00:05]} 59. Nd3+ {[%clk 0:00:08]}  Ke4 {[%clk 0:00:05]} 60. Nb4 {[%clk 0:00:08]}  Bb5+ {[%clk 0:00:05]} 61. Ke1 {[%clk 0:00:08]}  Ba4 {[%clk 0:00:05]} 62. Kd1 {[%clk 0:00:08]}  Ke3 {[%clk 0:00:04]} 63. Kc1 {[%clk 0:00:08]}  Bb5 {[%clk 0:00:04]} 64. Nd5+ {[%clk 0:00:08]}  Ke4 {[%clk 0:00:05]} 65. Nb4 {[%clk 0:00:09]}  Bc4 {[%clk 0:00:05]} 66. Nc6 {[%clk 0:00:08]}  Kd5 {[%clk 0:00:05]} 67. Ne7+ {[%clk 0:00:08]}  Kd6 {[%clk 0:00:04]} 68. Nf5+ {[%clk 0:00:08]}  Ke5 {[%clk 0:00:05]} 69. Ne7 {[%clk 0:00:08]}  Bb5 {[%clk 0:00:05]} 70. Nc8 {[%clk 0:00:07]}  Ke6 {[%clk 0:00:03]} 71. Kd1 {[%clk 0:00:05]}  Bd7 {[%clk 0:00:02]} 72. Nb6 {[%clk 0:00:05]}  Bb5 {[%clk 0:00:03]} 73. Ke1 {[%clk 0:00:04]}  Ba6 {[%clk 0:00:02]} 74. Na4 {[%clk 0:00:03]}  Kd6 {[%clk 0:00:03]} 75. Kd1 {[%clk 0:00:02]}  Bb5 {[%clk 0:00:03]} 76. Nb6 {[%clk 0:00:02]}  Ba6 {[%clk 0:00:04]} 77. Na8 {[%clk 0:00:01]}  Kc6 {[%clk 0:00:05]} 78. Kc1 {[%clk 0:00:02]}  Kb7 {[%clk 0:00:04]} 79. Nb6 {[%clk 0:00:02]}  Kxb6 {[%clk 0:00:05]} 0-1


[Site "https://www.chess.com"]

[Event "Titled Tuesday Blitz July 26 Late 2022"]
[White "Karas, Marek"]
[Black "Leiva, Gianmarco"]
[WhiteFideId "14928558"]
[BlackFideId "3804399"]
[WhiteElo "2250"]
[BlackElo "2323"]
[Result "0-1"]
[Round "02"]
[TimeControl "180+1"]
[Date "2022.07.27"]
[WhiteClock "0:00:36"]
[BlackClock "0:00:49"]

1. d4 {[%clk 0:02:59]}  Nf6 {[%clk 0:02:54]} 2. Nf3 {[%clk 0:02:59]}  e6 {[%clk 0:02:55]} 3. c4 {[%clk 0:02:58]}  d5 {[%clk 0:02:53]} 4. Nc3 {[%clk 0:02:57]}  a6 {[%clk 0:02:51]} 5. cxd5 {[%clk 0:02:57]}  exd5 {[%clk 0:02:52]} 6. Bg5 {[%clk 0:02:57]}  Be6 {[%clk 0:02:51]} 7. Bxf6 {[%clk 0:02:57]}  Qxf6 {[%clk 0:02:51]} 8. Qb3 {[%clk 0:02:57]}  Ra7 {[%clk 0:02:52]} 9. e3 {[%clk 0:02:51]}  Qd8 {[%clk 0:02:51]} 10. Bd3 {[%clk 0:02:50]}  c6 {[%clk 0:02:51]} 11. O-O {[%clk 0:02:50]}  Bd6 {[%clk 0:02:51]} 12. Qc2 {[%clk 0:02:50]}  h6 {[%clk 0:02:47]} 13. Bf5 {[%clk 0:02:45]}  O-O {[%clk 0:02:47]} 14. Rab1 {[%clk 0:02:42]}  a5 {[%clk 0:02:44]} 15. a3 {[%clk 0:02:41]}  Bxf5 {[%clk 0:02:39]} 16. Qxf5 {[%clk 0:02:40]}  a4 {[%clk 0:02:40]} 17. Qc2 {[%clk 0:02:37]}  Qa5 {[%clk 0:02:35]} 18. e4 {[%clk 0:02:34]}  Nd7 {[%clk 0:02:29]} 19. exd5 {[%clk 0:02:28]}  cxd5 {[%clk 0:02:30]} 20. Qf5 {[%clk 0:02:26]}  Nf6 {[%clk 0:02:22]} 21. Rbc1 {[%clk 0:02:01]}  Raa8 {[%clk 0:02:17]} 22. g4 {[%clk 0:01:53]}  Rae8 {[%clk 0:01:51]} 23. h4 {[%clk 0:01:48]}  Re6 {[%clk 0:01:43]} 24. g5 {[%clk 0:01:35]}  g6 {[%clk 0:01:42]} 25. Qd3 {[%clk 0:01:29]}  Ne4 {[%clk 0:01:40]} 26. Qb5 {[%clk 0:01:25]}  Qxb5 {[%clk 0:01:36]} 27. Nxb5 {[%clk 0:01:26]}  Bf4 {[%clk 0:01:37]} 28. Rce1 {[%clk 0:01:22]}  hxg5 {[%clk 0:01:35]} 29. hxg5 {[%clk 0:01:22]}  Rc8 {[%clk 0:01:26]} 30. Re2 {[%clk 0:01:17]}  Nxg5 {[%clk 0:01:26]} 31. Rxe6 {[%clk 0:01:07]}  Nxf3+ {[%clk 0:01:26]} 32. Kg2 {[%clk 0:01:07]}  Nh4+ {[%clk 0:01:26]} 33. Kh3 {[%clk 0:01:08]}  fxe6 {[%clk 0:01:25]} 34. Kxh4 {[%clk 0:01:08]}  Rc2 {[%clk 0:01:25]} 35. Nc3 {[%clk 0:01:05]}  Rxb2 {[%clk 0:01:10]} 36. Nxa4 {[%clk 0:01:05]}  Rd2 {[%clk 0:01:01]} 37. Nc5 {[%clk 0:01:04]}  Kf7 {[%clk 0:01:02]} 38. Nxb7 {[%clk 0:00:52]}  Rxd4 {[%clk 0:00:57]} 39. Ra1 {[%clk 0:00:50]}  Be5+ {[%clk 0:00:50]} 40. Kh3 {[%clk 0:00:36]}  Rd3+ {[%clk 0:00:49]} 0-1


[Site "https://www.chess.com"]

[Event "Titled Tuesday Blitz July 26 Late 2022"]
[White "Krishnan, Varun"]
[Black "Petrovic, Aleksa"]
[WhiteFideId "5054508"]
[BlackFideId "967629"]
[WhiteElo "2726"]
[BlackElo "2185"]
[Result "1-0"]
[Round "02"]
[TimeControl "180+1"]
[Date "2022.07.27"]
[WhiteClock "0:00:09"]
[BlackClock "0:00:47"]

1. d4 {[%clk 0:03:00]}  d5 {[%clk 0:02:58]} 2. c4 {[%clk 0:03:00]}  c6 {[%clk 0:02:58]} 3. Nf3 {[%clk 0:02:59]}  Nf6 {[%clk 0:02:57]} 4. Nc3 {[%clk 0:02:59]}  e6 {[%clk 0:02:58]} 5. e3 {[%clk 0:02:58]}  Nbd7 {[%clk 0:02:57]} 6. Qc2 {[%clk 0:02:57]}  Bd6 {[%clk 0:02:56]} 7. b3 {[%clk 0:02:58]}  O-O {[%clk 0:02:55]} 8. Bd3 {[%clk 0:02:57]}  b6 {[%clk 0:02:55]} 9. Bb2 {[%clk 0:02:55]}  Bb7 {[%clk 0:02:55]} 10. O-O {[%clk 0:02:56]}  Qe7 {[%clk 0:02:55]} 11. e4 {[%clk 0:02:54]}  dxe4 {[%clk 0:02:55]} 12. Nxe4 {[%clk 0:02:54]}  Nxe4 {[%clk 0:02:55]} 13. Bxe4 {[%clk 0:02:54]}  Nf6 {[%clk 0:02:56]} 14. Bd3 {[%clk 0:02:54]}  c5 {[%clk 0:02:56]} 15. dxc5 {[%clk 0:02:41]}  Bxc5 {[%clk 0:02:55]} 16. Ne5 {[%clk 0:02:40]}  Rfd8 {[%clk 0:02:51]} 17. Rad1 {[%clk 0:02:36]}  Rac8 {[%clk 0:02:30]} 18. Qe2 {[%clk 0:02:34]}  Ba8 {[%clk 0:02:27]} 19. Ng4 {[%clk 0:02:30]}  Nxg4 {[%clk 0:02:10]} 20. Qxg4 {[%clk 0:02:28]}  f5 {[%clk 0:02:06]} 21. Qh3 {[%clk 0:02:17]}  Bd4 {[%clk 0:02:02]} 22. Bxd4 {[%clk 0:02:06]}  Rxd4 {[%clk 0:02:03]} 23. Bxf5 {[%clk 0:02:03]}  Rxd1 {[%clk 0:02:04]} 24. Bxe6+ {[%clk 0:02:03]}  Kh8 {[%clk 0:02:05]} 25. Rxd1 {[%clk 0:01:56]}  Re8 {[%clk 0:02:03]} 26. Qe3 {[%clk 0:00:56]}  h6 {[%clk 0:01:57]} 27. Bh3 {[%clk 0:00:46]}  Qf8 {[%clk 0:01:48]} 28. Qd2 {[%clk 0:00:45]}  Be4 {[%clk 0:01:41]} 29. Re1 {[%clk 0:00:36]}  Rd8 {[%clk 0:01:33]} 30. Qe3 {[%clk 0:00:35]}  Bg6 {[%clk 0:01:29]} 31. Bg4 {[%clk 0:00:35]}  Kh7 {[%clk 0:01:21]} 32. Bf3 {[%clk 0:00:31]}  Re8 {[%clk 0:01:19]} 33. Qc3 {[%clk 0:00:30]}  Qf6 {[%clk 0:01:14]} 34. Qc1 {[%clk 0:00:21]}  Qb2 {[%clk 0:01:00]} 35. h4 {[%clk 0:00:14]}  Rxe1+ {[%clk 0:00:54]} 36. Qxe1 {[%clk 0:00:15]}  Qxa2 {[%clk 0:00:55]} 37. h5 {[%clk 0:00:15]}  Bb1 {[%clk 0:00:51]} 38. Qe8 {[%clk 0:00:11]}  Qxb3 {[%clk 0:00:47]} 39. Bd5 {[%clk 0:00:09]} 1-0


[Site "https://www.chess.com"]

[Event "Titled Tuesday Blitz July 26 Late 2022"]
[White "Krstulovic, Alex"]
[Black "Djordjevic, Vuk"]
[WhiteFideId "760056"]
[BlackFideId "902098"]
[WhiteElo "2244"]
[BlackElo "2456"]
[Result "*"]
[Round "02"]
[TimeControl "180+1"]
[Date "2022.07.26"]
[WhiteClock "0:02:00"]
[BlackClock "0:02:18"]

1. e4 {[%clk 0:03:00]}  d5 {[%clk 0:02:59]} 2. exd5 {[%clk 0:02:44]}  Qxd5 {[%clk 0:03:00]} 3. Nc3 {[%clk 0:02:39]}  Qd6 {[%clk 0:03:00]} 4. d4 {[%clk 0:02:36]}  Nf6 {[%clk 0:03:00]} 5. Nf3 {[%clk 0:02:36]}  c6 {[%clk 0:03:01]} 6. g3 {[%clk 0:02:36]}  Bg4 {[%clk 0:03:01]} 7. Bg2 {[%clk 0:02:36]}  e6 {[%clk 0:03:01]} 8. Bf4 {[%clk 0:02:36]}  Qd8 {[%clk 0:03:00]} 9. O-O {[%clk 0:02:36]}  Bd6 {[%clk 0:03:01]} 10. Qd2 {[%clk 0:02:34]}  Bxf4 {[%clk 0:02:57]} 11. Qxf4 {[%clk 0:02:33]}  Nbd7 {[%clk 0:02:55]} 12. Ne5 {[%clk 0:02:32]}  Bf5 {[%clk 0:02:54]} 13. g4 {[%clk 0:02:28]}  Bxc2 {[%clk 0:02:40]} 14. g5 {[%clk 0:02:27]}  Nxe5 {[%clk 0:02:39]} 15. gxf6 {[%clk 0:02:23]}  Ng6 {[%clk 0:02:32]} 16. fxg7 {[%clk 0:02:19]}  Rg8 {[%clk 0:02:30]} 17. Qd2 {[%clk 0:02:11]}  Rxg7 {[%clk 0:02:20]} 18. Qxc2 {[%clk 0:02:08]}  Nf4 {[%clk 0:02:19]} 19. Qe4 {[%clk 0:02:00]}  Rxg2+ {[%clk 0:02:18]} 20. Kh1 {[%clk 0:02:00]} *


[Site "https://www.chess.com"]

[Event "Titled Tuesday Blitz July 26 Late 2022"]
[White "Leenhouts, Koen"]
[Black "Csonka, Balazs"]
[WhiteFideId "1008439"]
[BlackFideId "742910"]
[WhiteElo "2409"]
[BlackElo "2404"]
[Result "1/2-1/2"]
[Round "02"]
[TimeControl "180+1"]
[Date "2022.07.27"]
[WhiteClock "0:01:25"]
[BlackClock "0:00:57"]

1. d4 {[%clk 0:02:57]}  d5 {[%clk 0:02:58]} 2. c4 {[%clk 0:02:57]}  e6 {[%clk 0:02:58]} 3. Nf3 {[%clk 0:02:58]}  Nf6 {[%clk 0:02:55]} 4. g3 {[%clk 0:02:57]}  dxc4 {[%clk 0:02:52]} 5. Bg2 {[%clk 0:02:57]}  Nc6 {[%clk 0:02:48]} 6. Qa4 {[%clk 0:02:52]}  Bb4+ {[%clk 0:02:48]} 7. Bd2 {[%clk 0:02:50]}  Nd5 {[%clk 0:02:47]} 8. Qb5 {[%clk 0:02:43]}  Bxd2+ {[%clk 0:02:42]} 9. Nbxd2 {[%clk 0:02:44]}  c3 {[%clk 0:02:42]} 10. bxc3 {[%clk 0:02:44]}  Nxc3 {[%clk 0:02:42]} 11. Qd3 {[%clk 0:02:43]}  Nd5 {[%clk 0:02:42]} 12. O-O {[%clk 0:02:42]}  O-O {[%clk 0:02:40]} 13. Rfd1 {[%clk 0:02:38]}  b6 {[%clk 0:02:35]} 14. e4 {[%clk 0:02:32]}  Nde7 {[%clk 0:02:24]} 15. Rac1 {[%clk 0:02:20]}  Bb7 {[%clk 0:02:22]} 16. h4 {[%clk 0:02:16]}  Qd7 {[%clk 0:02:10]} 17. Nc4 {[%clk 0:02:02]}  Rad8 {[%clk 0:02:05]} 18. Qb1 {[%clk 0:01:54]}  Qc8 {[%clk 0:01:39]} 19. Ne3 {[%clk 0:01:47]}  Na5 {[%clk 0:01:28]} 20. Ne5 {[%clk 0:01:39]}  Nac6 {[%clk 0:01:00]} 21. Nf3 {[%clk 0:01:29]}  Na5 {[%clk 0:00:59]} 22. Ne5 {[%clk 0:01:26]}  Nac6 {[%clk 0:00:57]} 23. Nf3 {[%clk 0:01:25]} 1/2-1/2


[Site "https://www.chess.com"]

[Event "Titled Tuesday Blitz July 26 Late 2022"]
[White "Madaminov, Mukhiddin"]
[Black "Pham, Khoi"]
[WhiteFideId "14210703"]
[BlackFideId "1054988"]
[WhiteElo "2011"]
[BlackElo "2298"]
[Result "0-1"]
[Round "02"]
[TimeControl "180+1"]
[Date "2022.07.27"]
[WhiteClock "0:00:04"]
[BlackClock "0:00:43"]

1. d4 {[%clk 0:03:00]}  Nf6 {[%clk 0:02:59]} 2. Nc3 {[%clk 0:03:01]}  d5 {[%clk 0:02:58]} 3. Bf4 {[%clk 0:03:01]}  e6 {[%clk 0:02:58]} 4. Nb5 {[%clk 0:03:01]}  Na6 {[%clk 0:02:58]} 5. e3 {[%clk 0:03:01]}  Be7 {[%clk 0:02:57]} 6. Nf3 {[%clk 0:03:01]}  O-O {[%clk 0:02:57]} 7. Bd3 {[%clk 0:03:01]}  c6 {[%clk 0:02:57]} 8. Nc3 {[%clk 0:03:01]}  c5 {[%clk 0:02:57]} 9. O-O {[%clk 0:03:00]}  Nb4 {[%clk 0:02:55]} 10. a3 {[%clk 0:02:49]}  Nxd3 {[%clk 0:02:55]} 11. cxd3 {[%clk 0:02:49]}  b6 {[%clk 0:02:54]} 12. Rc1 {[%clk 0:02:45]}  Bb7 {[%clk 0:02:45]} 13. Qb3 {[%clk 0:02:29]}  Nd7 {[%clk 0:02:33]} 14. dxc5 {[%clk 0:02:08]}  Nxc5 {[%clk 0:02:32]} 15. Qc2 {[%clk 0:02:05]}  Rc8 {[%clk 0:02:18]} 16. b4 {[%clk 0:02:05]}  Nd7 {[%clk 0:02:12]} 17. Qa4 {[%clk 0:02:00]}  a6 {[%clk 0:02:03]} 18. Qb3 {[%clk 0:01:57]}  Bf6 {[%clk 0:02:02]} 19. d4 {[%clk 0:01:49]}  b5 {[%clk 0:01:56]} 20. a4 {[%clk 0:01:49]}  Qb6 {[%clk 0:01:49]} 21. a5 {[%clk 0:01:23]}  Qd8 {[%clk 0:01:45]} 22. Ne2 {[%clk 0:01:06]}  Be7 {[%clk 0:01:40]} 23. Bg3 {[%clk 0:01:04]}  Rc4 {[%clk 0:01:38]} 24. Nd2 {[%clk 0:01:03]}  Rxb4 {[%clk 0:01:37]} 25. Qd3 {[%clk 0:00:56]}  Qxa5 {[%clk 0:01:36]} 26. Rc7 {[%clk 0:00:53]}  Bc8 {[%clk 0:01:07]} 27. Rfc1 {[%clk 0:00:43]}  Rc4 {[%clk 0:01:08]} 28. Nxc4 {[%clk 0:00:42]}  dxc4 {[%clk 0:01:08]} 29. Qe4 {[%clk 0:00:41]}  e5 {[%clk 0:00:57]} 30. Qc6 {[%clk 0:00:37]}  Nb8 {[%clk 0:00:52]} 31. Rxc8 {[%clk 0:00:06]}  Nxc6 {[%clk 0:00:51]} 32. Rxc6 {[%clk 0:00:07]}  Ba3 {[%clk 0:00:46]} 33. Ra1 {[%clk 0:00:04]}  Qd2 {[%clk 0:00:43]} 0-1


[Site "https://www.chess.com"]

[Event "Titled Tuesday Blitz July 26 Late 2022"]
[White "Manukian, Artak"]
[Black "Papasimakopoulos, Alexandros"]
[WhiteFideId "13301373"]
[BlackFideId "4244125"]
[WhiteElo "2334"]
[BlackElo "2340"]
[Result "1-0"]
[Round "02"]
[TimeControl "180+1"]
[Date "2022.07.27"]
[WhiteClock "0:00:17"]
[BlackClock "0:01:00"]

1. e4 {[%clk 0:03:00]}  e6 {[%clk 0:02:59]} 2. d4 {[%clk 0:03:00]}  d5 {[%clk 0:02:59]} 3. e5 {[%clk 0:03:00]}  b6 {[%clk 0:02:59]} 4. c3 {[%clk 0:03:01]}  Qd7 {[%clk 0:02:58]} 5. Nf3 {[%clk 0:03:00]}  Ne7 {[%clk 0:02:58]} 6. Bd3 {[%clk 0:02:57]}  Ba6 {[%clk 0:02:58]} 7. O-O {[%clk 0:02:58]}  Bxd3 {[%clk 0:02:56]} 8. Qxd3 {[%clk 0:02:59]}  c5 {[%clk 0:02:57]} 9. Nbd2 {[%clk 0:02:55]}  Nbc6 {[%clk 0:02:54]} 10. a3 {[%clk 0:02:48]}  c4 {[%clk 0:02:51]} 11. Qc2 {[%clk 0:02:45]}  Na5 {[%clk 0:02:48]} 12. b4 {[%clk 0:02:41]}  cxb3 {[%clk 0:02:48]} 13. Nxb3 {[%clk 0:02:40]}  Nxb3 {[%clk 0:02:47]} 14. Qxb3 {[%clk 0:02:41]}  Nc6 {[%clk 0:02:48]} 15. Nd2 {[%clk 0:02:37]}  Na5 {[%clk 0:02:47]} 16. Qa2 {[%clk 0:02:35]}  Qa4 {[%clk 0:02:45]} 17. Rb1 {[%clk 0:02:32]}  Be7 {[%clk 0:02:44]} 18. Nb3 {[%clk 0:02:29]}  Nc4 {[%clk 0:02:40]} 19. Nd2 {[%clk 0:02:19]}  Rc8 {[%clk 0:02:40]} 20. Nxc4 {[%clk 0:02:15]}  Rxc4 {[%clk 0:02:41]} 21. Qb3 {[%clk 0:02:09]}  Qa5 {[%clk 0:02:36]} 22. Bb2 {[%clk 0:02:01]}  O-O {[%clk 0:02:36]} 23. f4 {[%clk 0:01:54]}  g6 {[%clk 0:02:34]} 24. g4 {[%clk 0:01:54]}  Qa4 {[%clk 0:02:24]} 25. Qxa4 {[%clk 0:01:53]}  Rxa4 {[%clk 0:02:25]} 26. Ra1 {[%clk 0:01:51]}  f5 {[%clk 0:02:19]} 27. exf6 {[%clk 0:01:40]}  Bxf6 {[%clk 0:02:19]} 28. Kg2 {[%clk 0:01:36]}  Kf7 {[%clk 0:02:14]} 29. Rf3 {[%clk 0:01:26]}  Be7 {[%clk 0:02:11]} 30. f5 {[%clk 0:01:19]}  exf5 {[%clk 0:02:04]} 31. gxf5 {[%clk 0:01:20]}  g5 {[%clk 0:02:03]} 32. Re3 {[%clk 0:01:05]}  Rd8 {[%clk 0:01:43]} 33. Kf3 {[%clk 0:00:56]}  b5 {[%clk 0:01:42]} 34. Kg4 {[%clk 0:00:55]}  Bf6 {[%clk 0:01:41]} 35. Rae1 {[%clk 0:00:38]}  a5 {[%clk 0:01:40]} 36. Re6 {[%clk 0:00:26]}  b4 {[%clk 0:01:40]} 37. cxb4 {[%clk 0:00:26]}  axb4 {[%clk 0:01:41]} 38. Bc1 {[%clk 0:00:26]}  bxa3 {[%clk 0:01:38]} 39. Rxf6+ {[%clk 0:00:25]}  Kxf6 {[%clk 0:01:37]} 40. Bxg5+ {[%clk 0:00:25]}  Kf7 {[%clk 0:01:37]} 41. Bxd8 {[%clk 0:00:26]}  Rxd4+ {[%clk 0:01:34]} 42. Kg5 {[%clk 0:00:25]}  h6+ {[%clk 0:01:28]} 43. Kxh6 {[%clk 0:00:24]}  a2 {[%clk 0:01:28]} 44. Ra1 {[%clk 0:00:23]}  Rd2 {[%clk 0:01:27]} 45. Kg5 {[%clk 0:00:22]}  Rxh2 {[%clk 0:01:26]} 46. Bb6 {[%clk 0:00:21]}  Rd2 {[%clk 0:01:22]} 47. Kf4 {[%clk 0:00:21]}  d4 {[%clk 0:01:18]} 48. Ke4 {[%clk 0:00:21]}  d3 {[%clk 0:01:18]} 49. Ke3 {[%clk 0:00:20]}  Rb2 {[%clk 0:01:17]} 50. Bd4 {[%clk 0:00:20]}  Rb5 {[%clk 0:01:14]} 51. f6 {[%clk 0:00:19]}  Ra5 {[%clk 0:01:12]} 52. Kxd3 {[%clk 0:00:19]}  Ke6 {[%clk 0:01:12]} 53. Bc3 {[%clk 0:00:19]}  Ra7 {[%clk 0:01:11]} 54. Kc2 {[%clk 0:00:20]}  Kd5 {[%clk 0:01:11]} 55. Kb3 {[%clk 0:00:19]}  Rb7+ {[%clk 0:01:12]} 56. Kxa2 {[%clk 0:00:19]}  Kc4 {[%clk 0:01:12]} 57. Bb2 {[%clk 0:00:19]}  Kd3 {[%clk 0:01:12]} 58. Rd1+ {[%clk 0:00:19]}  Kc2 {[%clk 0:01:12]} 59. Rc1+ {[%clk 0:00:19]}  Kd3 {[%clk 0:01:12]} 60. Rc6 {[%clk 0:00:20]}  Ke4 {[%clk 0:01:09]} 61. Re6+ {[%clk 0:00:19]}  Kd5 {[%clk 0:01:07]} 62. Re7 {[%clk 0:00:20]}  Rb8 {[%clk 0:01:07]} 63. f7 {[%clk 0:00:20]}  Ra8+ {[%clk 0:01:07]} 64. Kb1 {[%clk 0:00:20]}  Kd6 {[%clk 0:01:08]} 65. Rb7 {[%clk 0:00:20]}  Ke6 {[%clk 0:01:04]} 66. Ba3 {[%clk 0:00:18]}  Rxa3 {[%clk 0:01:03]} 67. f8=Q {[%clk 0:00:17]}  Rh3 {[%clk 0:01:02]} 68. Qf7+ {[%clk 0:00:17]}  Ke5 {[%clk 0:01:02]} 69. Rb5+ {[%clk 0:00:18]}  Kd4 {[%clk 0:01:02]} 70. Qf4+ {[%clk 0:00:18]}  Kc3 {[%clk 0:01:01]} 71. Qb4+ {[%clk 0:00:18]}  Kd3 {[%clk 0:01:01]} 72. Rd5+ {[%clk 0:00:18]}  Ke2 {[%clk 0:01:01]} 73. Rd2+ {[%clk 0:00:17]}  Kf1 {[%clk 0:01:00]} 74. Qf4+ {[%clk 0:00:17]}  Kg1 {[%clk 0:00:59]} 75. Qg4+ {[%clk 0:00:16]}  Kh1 {[%clk 0:01:00]} 76. Qxh3+ {[%clk 0:00:16]}  Kg1 {[%clk 0:01:00]} 77. Qg2# {[%clk 0:00:17]} 1-0


[Site "https://www.chess.com"]